fUST/lending_fUST_20240725
["ID","MTS","AMOUNT","RATE_DAILY","PERIOD"]
[333090267,1721857839641,-500.0,0.00013698,2]
[333090268,1721857839651,-1227.73,0.00013698,2]
[333090269,1721857839660,-419.05331893,0.00013698,2]
[333090270,1721857839671,-500.0,0.00013698,2]
[333090271,1721857839681,-484.85087696,0.00013698,2]
[333090272,1721857839690,-1425.27,0.00013698,2]
[333090273,1721857839700,-500.0,0.00013698,2]
[333090274,1721857839709,-500.0,0.00013698,2]
[333090277,1721857839719,-901.16,0.00013698,2]
[333090280,1721857839728,-383.67073235,0.00013698,2]
[333090281,1721857839737,-500.0,0.00013698,2]
[333090283,1721857839747,-500.0,0.00013698,2]
[333090285,1721857839756,-500.0,0.00013698,2]
[333090287,1721857839766,-500.0,0.00013698,2]
[333090289,1721857839775,-500.0,0.00013698,2]
[333090290,1721857839785,-500.0,0.00013698,2]
[333090291,1721857839794,-567.29295055,0.00013698,2]
[333090292,1721857839803,-500.0,0.00013698,2]
[333090294,1721857839814,-496.65481811,0.00013698,2]
[333090295,1721857839824,-500.0,0.00013698,2]
[333090296,1721857839833,-375.4855311,0.00013698,2]
[333090297,1721857839842,-500.0,0.00013698,2]
[333090298,1721857839852,-1596.77,0.00013698,2]
[333090299,1721857839861,-500.0,0.00013698,2]
[333090300,1721857839871,-500.0,0.00013698,2]
[333090301,1721857839880,-500.0,0.00013698,2]
[333090302,1721857839890,-500.0,0.00013698,2]
[333090303,1721857839899,-2140.14,0.00013698,2]
[333090304,1721857839909,-500.0,0.00013698,2]
[333090305,1721857839919,-500.0,0.00013698,2]
[333090306,1721857839929,-500.0,0.00013698,2]
[333090307,1721857839938,-500.0,0.00013698,2]
[333090308,1721857839948,-500.0,0.00013698,2]
[333090309,1721857839957,-500.0,0.00013698,2]
[333090310,1721857839966,-500.0,0.00013698,2]
[333090311,1721857839976,-500.0,0.00013698,2]
[333090312,1721857839985,-500.0,0.00013698,2]
[333090313,1721857839995,-500.0,0.00013698,2]
[333090314,1721857840004,-500.0,0.00013698,2]
[333090315,1721857840013,-500.0,0.00013698,2]
[333090316,1721857840022,-510.73957969,0.00013698,2]
[333090317,1721857840032,-515.46,0.00013698,2]
[333090319,1721857840041,-500.0,0.00013698,2]
[333090320,1721857840050,-500.0,0.00013698,2]
[333090321,1721857840059,-3189.42,0.00013698,2]
[333090322,1721857840074,-500.0,0.00013698,2]
[333090323,1721857840083,-500.0,0.00013698,2]
[333090325,1721857840092,-625.67,0.00013698,2]
[333090326,1721857840102,-423.60188235,0.00013698,2]
[333090327,1721857840113,-2008.4,0.00013698,2]
[333090328,1721857840122,-500.0,0.00013698,2]
[333090329,1721857840132,-1182.82,0.00013698,2]
[333090331,1721857840143,-508.72670725,0.00013698,2]
[333090332,1721857840152,-1274.66,0.00013698,2]
[333090333,1721857840162,-177.28501325,0.00013698,2]
[333090334,1721857840173,-500.0,0.00013698,2]
[333090336,1721857840183,-702.95,0.00013698,2]
[333090337,1721857840193,-500.0,0.00013698,2]
[333090338,1721857840202,-500.0,0.00013698,2]
[333090339,1721857840212,-500.0,0.00013698,2]
[333090340,1721857840222,-500.0,0.00013698,2]
[333090341,1721857840232,-500.0,0.00013698,2]
[333090342,1721857840241,-500.0,0.00013698,2]
[333090343,1721857840250,-500.0,0.00013698,2]
[333090344,1721857840260,-500.0,0.00013698,2]
[333090345,1721857840269,-500.0,0.00013698,2]
[333090346,1721857840279,-1954.46,0.00013698,2]
[333090347,1721857840288,-500.0,0.00013698,2]
[333090348,1721857840297,-1167.61,0.00013698,2]
[333090349,1721857840308,-758.35,0.00013698,2]
[333090350,1721857840318,-500.0,0.00013698,2]
[333090351,1721857840327,-500.0,0.00013698,2]
[333090352,1721857840337,-500.0,0.00013698,2]
[333090353,1721857840347,-500.0,0.00013698,2]
[333090354,1721857840356,-790.91,0.00013698,2]
[333090355,1721857840365,-515.97,0.00013698,2]
[333090356,1721857840375,-1763.35,0.00013698,2]
[333090357,1721857840384,-500.0,0.00013698,2]
[333090358,1721857840395,-500.0,0.00013698,2]
[333090359,1721857840405,-500.0,0.00013698,2]
[333090360,1721857840415,-500.0,0.00013698,2]
[333090361,1721857840425,-1310.39,0.00013698,2]
[333090362,1721857840435,-1727.86,0.00013698,2]
[333090363,1721857840444,-500.0,0.00013698,2]
[333090364,1721857840454,-500.0,0.00013698,2]
[333090365,1721857840463,-500.0,0.00013698,2]
[333090366,1721857840473,-500.0,0.00013698,2]
[333090367,1721857840482,-500.0,0.00013698,2]
[333090368,1721857840491,-751.9,0.00013698,2]
[333090369,1721857840501,-499.99813913,0.00013698,2]
[333090370,1721857840512,-500.0,0.00013698,2]
[333090371,1721857840521,-500.0,0.00013698,2]
[333090372,1721857840530,-500.0,0.00013698,2]
[333090373,1721857840540,-713.63,0.00013698,2]
[333090374,1721857840549,-429.48027366,0.00013698,2]
[333090375,1721857840558,-500.0,0.00013698,2]
[333090376,1721857840568,-500.0,0.00013698,2]
[333090377,1721857840577,-851.02,0.00013698,2]
[333090378,1721857840587,-500.0,0.00013698,2]
[333090379,1721857840596,-500.0,0.00013698,2]
[333090380,1721857840606,-1760.22,0.00013698,2]
[333090381,1721857840615,-500.0,0.00013698,2]
[333090382,1721857840625,-576.17,0.00013698,2]
[333090383,1721857840635,-500.0,0.00013698,2]
[333090384,1721857840644,-500.0,0.00013698,2]
[333090385,1721857840654,-1209.78,0.00013698,2]
[333090386,1721857840665,-500.0,0.00013698,2]
[333090387,1721857840675,-500.0,0.00013698,2]
[333090388,1721857840685,-623.27,0.00013698,2]
[333090389,1721857840697,-500.0,0.00013698,2]
[333090390,1721857840706,-500.0,0.00013698,2]
[333090391,1721857840715,-500.0,0.00013698,2]
[333090392,1721857840724,-500.0,0.00013698,2]
[333090393,1721857840733,-550.72,0.00013698,2]
[333090394,1721857840742,-500.0,0.00013698,2]
[333090395,1721857840751,-500.0,0.00013698,2]
[333090396,1721857840760,-500.0,0.00013698,2]
[333090397,1721857840769,-1781.2,0.00013698,2]
[333090398,1721857840778,-500.0,0.00013698,2]
[333090399,1721857840788,-500.0,0.00013698,2]
[333090400,1721857840797,-500.0,0.00013698,2]
[333090401,1721857840807,-282.22,0.00013698,2]
[333090402,1721857840817,-500.0,0.00013698,2]
[333090403,1721857840827,-2206.24,0.00013698,2]
[333090404,1721857840837,-500.0,0.00013698,2]
[333090405,1721857840846,-1245.45,0.00013698,2]
[333090406,1721857840855,-500.0,0.00013698,2]
[333090407,1721857840865,-1120.76,0.00013698,2]
[333090408,1721857840875,-577.38,0.00013698,2]
[333090409,1721857840885,-500.0,0.00013698,2]
[333090410,1721857840895,-500.0,0.00013698,2]
[333090411,1721857840905,-1450.95,0.00013698,2]
[333090412,1721857840920,-500.0,0.00013698,2]
[333090413,1721857840930,-500.0,0.00013698,2]
[333090414,1721857840940,-500.0,0.00013698,2]
[333090415,1721857840949,-500.0,0.00013698,2]
[333090416,1721857840960,-500.0,0.00013698,2]
[333090417,1721857840969,-500.0,0.00013698,2]
[333090418,1721857840979,-500.0,0.00013698,2]
[333090419,1721857840990,-500.0,0.00013698,2]
[333090420,1721857841000,-500.0,0.00013698,2]
[333090421,1721857841010,-500.0,0.00013698,2]
[333090422,1721857841021,-500.0,0.00013698,2]
[333090423,1721857841031,-500.0,0.00013698,2]
[333090424,1721857841041,-500.0,0.00013698,2]
[333090425,1721857841052,-500.0,0.00013698,2]
[333090426,1721857841062,-644.6100537,0.00013698,2]
[333090427,1721857841076,-727.42,0.00013698,2]
[333090428,1721857841086,-500.0,0.00013698,2]
[333090429,1721857841096,-505.55424057,0.00013698,2]
[333090430,1721857841108,-800.82,0.00013698,2]
[333090431,1721857841121,-500.0,0.00013698,2]
[333090432,1721857841130,-450.1862276,0.00013698,2]
[333090433,1721857841140,-500.0,0.00013698,2]
[333090434,1721857841151,-500.0,0.00013698,2]
[333090435,1721857841160,-500.0,0.00013698,2]
[333090436,1721857841176,-500.0,0.00013698,2]
[333090437,1721857841186,-500.0,0.00013698,2]
[333090438,1721857841195,-2022.28,0.00013698,2]
[333090439,1721857841205,-500.0,0.00013698,2]
[333090440,1721857841214,-4823.81,0.00013698,2]
[333090441,1721857841224,-500.0,0.00013698,2]
[333090442,1721857841235,-12109.36413376,0.00013698,2]
[333090443,1721857841244,-1157.78,0.00013698,2]
[333090444,1721857841255,-500.0,0.00013698,2]
[333090445,1721857841264,-1658.98,0.00013698,2]
[333090446,1721857841274,-500.0,0.00013698,2]
[333090447,1721857841283,-1802.77,0.00013698,2]
[333090448,1721857841294,-1174.69,0.00013698,2]
[333090449,1721857841303,-500.0,0.00013698,2]
[333090450,1721857841313,-4212.18,0.00013698,2]
[333090451,1721857841322,-1149.23,0.00013698,2]
[333090452,1721857841332,-500.0,0.00013698,2]
[333090453,1721857841342,-500.0,0.00013698,2]
[333090454,1721857841352,-500.0,0.00013698,2]
[333090455,1721857841361,-366.29564877,0.00013698,2]
[333090456,1721857841372,-2143.7,0.00013698,2]
[333090457,1721857841382,-500.0,0.00013698,2]
[333090458,1721857841391,-500.0,0.00013698,2]
[333090459,1721857841401,-500.0,0.00013698,2]
[333090460,1721857841410,-500.0,0.00013698,2]
[333090461,1721857841423,-500.0,0.00013698,2]
[333090462,1721857841433,-525.13,0.00013698,2]
[333090463,1721857841442,-500.0,0.00013698,2]
[333090464,1721857841452,-545.6490903,0.00013698,2]
[333090465,1721857841462,-672.86,0.00013698,2]
[333090466,1721857841471,-500.0,0.00013698,2]
[333090467,1721857841480,-500.0,0.00013698,2]
[333090468,1721857841490,-4517.3,0.00013698,2]
[333090469,1721857841499,-1676.56,0.00013698,2]
[333090470,1721857841509,-500.0,0.00013698,2]
[333090471,1721857841519,-1161.52,0.00013698,2]
[333090472,1721857841529,-500.0,0.00013698,2]
[333090473,1721857841538,-500.0,0.00013698,2]
[333090474,1721857841547,-9379.92,0.00013698,2]
[333090475,1721857841557,-500.0,0.00013698,2]
[333090476,1721857841567,-1303.67,0.00013698,2]
[333090477,1721857841576,-1467.02,0.00013698,2]
[333090478,1721857841585,-892.12,0.00013698,2]
[333090479,1721857841595,-2130.6,0.00013698,2]
[333090480,1721857841605,-500.0,0.00013698,2]
[333090481,1721857841614,-471.06056895,0.00013698,2]
[333090482,1721857841624,-680.7,0.00013698,2]
[333090483,1721857841634,-4368.15,0.00013698,2]
[333090484,1721857841643,-644.05,0.00013698,2]
[333090485,1721857841652,-2002.64,0.00013698,2]
[333090486,1721857841662,-500.0,0.00013698,2]
[333090487,1721857841674,-500.0,0.00013698,2]
[333090488,1721857841683,-930.27,0.00013698,2]
[333090489,1721857841692,-791.69,0.00013698,2]
[333090490,1721857841701,-626.21,0.00013698,2]
[333090491,1721857841710,-1740.97,0.00013698,2]
[333090492,1721857841720,-500.0,0.00013698,2]
[333090493,1721857841730,-6017.7,0.00013698,2]
[333090494,1721857841739,-6017.7,0.00013698,2]
[333090495,1721857841749,-6017.7,0.00013698,2]
[333090496,1721857841759,-6017.7,0.00013698,2]
[333090497,1721857841768,-6017.7,0.00013698,2]
[333090498,1721857841778,-6017.7,0.00013698,2]
[333090499,1721857841788,-6017.7,0.00013698,2]
[333090500,1721857841797,-6017.7,0.00013698,2]
[333090501,1721857841806,-500.0,0.00013698,2]
[333090502,1721857841816,-2609.71,0.00013698,2]
[333090503,1721857841827,-8601.4,0.00013698,2]
[333090504,1721857841837,-500.0,0.00013698,2]
[333090505,1721857841847,-619.83,0.00013698,2]
[333090506,1721857841857,-500.0,0.00013698,2]
[333090507,1721857841867,-563.86,0.00013698,2]
[333090508,1721857841876,-918.81,0.00013698,2]
[333090509,1721857841886,-500.0,0.00013698,2]
[333090510,1721857841895,-500.0,0.00013698,2]
[333090511,1721857841905,-500.0,0.00013698,2]
[333090512,1721857841919,-4269.4,0.00013698,2]
[333090513,1721857841929,-890.15,0.00013698,2]
[333090514,1721857841939,-500.0,0.00013698,2]
[333090515,1721857841948,-1829.92,0.00013698,2]
[333090516,1721857841958,-1202.68,0.00013698,2]
[333090517,1721857841967,-500.0,0.00013698,2]
[333090518,1721857841977,-1497.79,0.00013698,2]
[333090519,1721857841987,-500.0,0.00013698,2]
[333090520,1721857841996,-500.0,0.00013698,2]
[333090521,1721857842006,-2413.6,0.00013698,2]
[333090522,1721857842015,-500.0,0.00013698,2]
[333090523,1721857842025,-2339.04,0.00013698,2]
[333090524,1721857842034,-500.0,0.00013698,2]
[333090525,1721857842044,-500.0,0.00013698,2]
[333090526,1721857842054,-500.0,0.00013698,2]
[333090527,1721857842065,-677.57,0.00013698,2]
[333090528,1721857842075,-500.0,0.00013698,2]
[333090529,1721857842085,-2567.09,0.00013698,2]
[333090530,1721857842094,-500.0,0.00013698,2]
[333090531,1721857842103,-500.0,0.00013698,2]
[333090532,1721857842115,-226.89197565,0.00013698,2]
[333090533,1721857842124,-273.02582686,0.00013698,2]
[333090534,1721857842134,-4595.76306786,0.00013698,2]
[333090535,1721857842145,-525.25,0.00013698,2]
[333090536,1721857842155,-1515.15,0.00013698,2]
[333090537,1721857842164,-9685.75,0.00013698,2]
[333090538,1721857842176,-500.0,0.00013698,2]
[333090539,1721857842186,-500.0,0.00013698,2]
[333090540,1721857842195,-500.0,0.00013698,2]
[333090541,1721857842204,-780.12,0.00013698,2]
[333090542,1721857842214,-12682.41,0.00013698,2]
[333090543,1721857842224,-500.0,0.00013698,2]
[333090544,1721857842404,-500.0,0.00013698,2]
[333090545,1721857842416,-500.0,0.00013698,2]
[333090546,1721857842427,-500.0,0.00013698,2]
[333090547,1721857842436,-500.0,0.00013698,2]
[333090548,1721857842446,-4038.03,0.00013698,2]
[333090549,1721857842455,-500.0,0.00013698,2]
[333090550,1721857842465,-500.0,0.00013698,2]
[333090551,1721857842474,-500.0,0.00013698,2]
[333090552,1721857842483,-500.0,0.00013698,2]
[333090553,1721857842493,-500.0,0.00013698,2]
[333090554,1721857842502,-500.0,0.00013698,2]
[333090555,1721857842511,-500.0,0.00013698,2]
[333090556,1721857842521,-500.0,0.00013698,2]
[333090557,1721857842530,-608.13396375,0.00013698,2]
[333090558,1721857842540,-500.0,0.00013698,2]
[333090559,1721857842549,-500.0,0.00013698,2]
[333090560,1721857842559,-500.0,0.00013698,2]
[333090561,1721857842568,-1785.96,0.00013698,2]
[333090562,1721857842577,-6141.4,0.00013698,2]
[333090563,1721857842587,-500.0,0.00013698,2]
[333090564,1721857842596,-649.24,0.00013698,2]
[333090565,1721857842605,-500.0,0.00013698,2]
[333090566,1721857842615,-4151.41,0.00013698,2]
[333090567,1721857842625,-500.0,0.00013698,2]
[333090568,1721857842634,-500.0,0.00013698,2]
[333090569,1721857842645,-776.29,0.00013698,2]
[333090570,1721857842655,-2378.78,0.00013698,2]
[333090571,1721857842667,-500.0,0.00013698,2]
[333090572,1721857842676,-155.0920539,0.00013698,2]
[333090573,1721857842687,-500.0,0.00013698,2]
[333090574,1721857842696,-795.53925641,0.00013698,2]
[333090575,1721857842705,-795.53925641,0.00013698,2]
[333090576,1721857842715,-500.0,0.00013698,2]
[333090577,1721857842724,-795.53925641,0.00013698,2]
[333090578,1721857842734,-643.3553404,0.00013698,2]
[333090579,1721857842744,-795.53925641,0.00013698,2]
[333090581,1721857842753,-795.53925641,0.00013698,2]
[333090582,1721857842763,-795.53925641,0.00013698,2]
[333090584,1721857842773,-795.53925641,0.00013698,2]
[333090586,1721857842783,-500.0,0.00013698,2]
[333090588,1721857842793,-795.53925641,0.00013698,2]
[333090590,1721857842803,-795.53925641,0.00013698,2]
[333090592,1721857842813,-795.53925641,0.00013698,2]
[333090593,1721857842822,-480.75192071,0.00013698,2]
[333090594,1721857842832,-795.53925641,0.00013698,2]
[333090595,1721857842842,-500.0,0.00013698,2]
[333090596,1721857842851,-795.53925641,0.00013698,2]
[333090597,1721857842861,-795.53925641,0.00013698,2]
[333090598,1721857842871,-795.53925641,0.00013698,2]
[333090599,1721857842880,-500.0,0.00013698,2]
[333090600,1721857842890,-795.53925641,0.00013698,2]
[333090601,1721857842899,-500.0,0.00013698,2]
[333090602,1721857842908,-500.0,0.00013698,2]
[333090603,1721857842919,-500.0,0.00013698,2]
[333090604,1721857842928,-500.0,0.00013698,2]
[333090605,1721857842938,-500.0,0.00013698,2]
[333090606,1721857842947,-500.0,0.00013698,2]
[333090607,1721857842957,-500.0,0.00013698,2]
[333090608,1721857842966,-500.0,0.00013698,2]
[333090609,1721857842975,-500.0,0.00013698,2]
[333090610,1721857842988,-500.0,0.00013698,2]
[333090611,1721857842997,-500.0,0.00013698,2]
[333090612,1721857843006,-500.0,0.00013698,2]
[333090613,1721857843016,-500.0,0.00013698,2]
[333090614,1721857843026,-500.0,0.00013698,2]
[333090615,1721857843035,-500.0,0.00013698,2]
[333090616,1721857843044,-500.0,0.00013698,2]
[333090617,1721857843054,-500.0,0.00013698,2]
[333090618,1721857843064,-500.0,0.00013698,2]
[333090619,1721857843078,-500.0,0.00013698,2]
[333090620,1721857843087,-500.0,0.00013698,2]
[333090621,1721857843096,-500.0,0.00013698,2]
[333090622,1721857843105,-500.0,0.00013698,2]
[333090623,1721857843115,-500.0,0.00013698,2]
[333090624,1721857843124,-500.0,0.00013698,2]
[333090625,1721857843135,-500.0,0.00013698,2]
[333090626,1721857843146,-500.0,0.00013698,2]
[333090627,1721857843155,-500.0,0.00013698,2]
[333090628,1721857843166,-500.0,0.00013698,2]
[333090629,1721857843176,-500.0,0.00013698,2]
[333090630,1721857843186,-500.0,0.00013698,2]
[333090631,1721857843195,-500.0,0.00013698,2]
[333090632,1721857843205,-1017.398271,0.00013699,2]
[333090633,1721857843214,-3000.0,0.00013699,2]
[333090634,1721857843223,-150.112233,0.000137,2]
[333090635,1721857843233,-150.112233,0.000137,2]
[333090636,1721857843242,-206.0347742,0.00013781,2]
[333090637,1721857843252,-199.2491992,0.00013781,2]
[333090638,1721857843261,-1366.53396516,0.00013872,2]
[333090639,1721857843271,-5722.87763012,0.00013961,2]
[333090640,1721857843280,-22891.5105205,0.00013962,2]
[333090641,1721857843290,-22891.5105205,0.00013962,2]
[333090642,1721857843299,-166586.45542303,0.00013971,5]
[333090643,1721857843308,-6017.7,0.00013971,2]
[333090644,1721857843318,-6017.7,0.00013971,2]
[333090645,1721857843328,-6017.7,0.00013971,2]
[333090646,1721857843337,-6017.7,0.00013971,2]
[333090647,1721857843346,-6017.7,0.00013971,2]
[333090648,1721857843355,-6017.7,0.00013971,2]
[333090649,1721857843367,-6017.7,0.00013971,2]
[333090650,1721857843376,-6017.7,0.00013971,2]
[333090651,1721857843385,-6017.7,0.00013971,2]
[333090652,1721857843395,-1972.47,0.00013972,2]
[333090653,1721857843404,-500.0,0.00013972,2]
[333090654,1721857843413,-501.48343815,0.00013972,2]
[333090655,1721857843423,-500.0,0.00013972,2]
[333090656,1721857843433,-500.0,0.00013972,2]
[333090657,1721857843443,-700.18,0.00013972,2]
[333090658,1721857843453,-500.0,0.00013972,2]
[333090659,1721857843462,-500.0,0.00013972,2]
[333090660,1721857843472,-1227.73,0.00013972,2]
[333090661,1721857843482,-500.0,0.00013972,2]
[333090662,1721857843491,-1425.27,0.00013972,2]
[333090663,1721857843501,-500.0,0.00013972,2]
[333090664,1721857843511,-500.0,0.00013972,2]
[333090665,1721857843520,-901.16,0.00013972,2]
[333090666,1721857843530,-500.0,0.00013972,2]
[333090667,1721857843539,-500.0,0.00013972,2]
[333090668,1721857843549,-500.0,0.00013972,2]
[333090669,1721857843559,-500.0,0.00013972,2]
[333090670,1721857843569,-1596.77,0.00013972,2]
[333090671,1721857843578,-500.0,0.00013972,2]
[333090672,1721857843587,-500.0,0.00013972,2]
[333090673,1721857843597,-500.0,0.00013972,2]
[333090674,1721857843606,-2140.14,0.00013972,2]
[333090675,1721857843615,-500.0,0.00013972,2]
[333090676,1721857843625,-500.0,0.00013972,2]
[333090677,1721857843634,-500.0,0.00013972,2]
[333090678,1721857843644,-500.0,0.00013972,2]
[333090679,1721857843653,-500.0,0.00013972,2]
[333090680,1721857843663,-500.0,0.00013972,2]
[333090681,1721857843675,-500.0,0.00013972,2]
[333090682,1721857843686,-500.0,0.00013972,2]
[333090683,1721857843696,-500.0,0.00013972,2]
[333090684,1721857843707,-500.0,0.00013972,2]
[333090685,1721857843717,-345.54007751,0.00013972,2]
[333090686,1721857843726,-515.46,0.00013972,2]
[333090687,1721857843736,-500.0,0.00013972,2]
[333090688,1721857843746,-589.81062813,0.00013972,2]
[333090689,1721857843755,-3189.42,0.00013972,2]
[333090690,1721857843765,-625.67,0.00013972,2]
[333090691,1721857843774,-2008.4,0.00013972,2]
[333090692,1721857843783,-1182.82,0.00013972,2]
[333090693,1721857843792,-1274.66,0.00013972,2]
[333090694,1721857843802,-500.0,0.00013972,2]
[333090695,1721857843812,-702.95,0.00013972,2]
[333090696,1721857843822,-500.0,0.00013972,2]
[333090697,1721857843831,-500.0,0.00013972,2]
[333090698,1721857843841,-500.0,0.00013972,2]
[333090699,1721857843850,-500.0,0.00013972,2]
[333090700,1721857843859,-500.0,0.00013972,2]
[333090701,1721857843869,-500.0,0.00013972,2]
[333090702,1721857843878,-500.0,0.00013972,2]
[333090703,1721857843887,-500.0,0.00013972,2]
[333090704,1721857843896,-1954.46,0.00013972,2]
[333090705,1721857843906,-500.0,0.00013972,2]
[333090706,1721857843915,-1167.61,0.00013972,2]
[333090707,1721857843924,-758.35,0.00013972,2]
[333090708,1721857843934,-500.0,0.00013972,2]
[333090709,1721857843944,-500.0,0.00013972,2]
[333090710,1721857843954,-500.0,0.00013972,2]
[333090711,1721857843963,-500.0,0.00013972,2]
[333090712,1721857843973,-790.91,0.00013972,2]
[333090713,1721857843983,-515.97,0.00013972,2]
[333090714,1721857843992,-1763.35,0.00013972,2]
[333090715,1721857844001,-500.0,0.00013972,2]
[333090716,1721857844010,-500.0,0.00013972,2]
[333090717,1721857844019,-500.0,0.00013972,2]
[333090718,1721857844029,-500.0,0.00013972,2]
[333090719,1721857844038,-1310.39,0.00013972,2]
[333090720,1721857844047,-1727.86,0.00013972,2]
[333090721,1721857844057,-500.0,0.00013972,2]
[333090722,1721857844066,-500.0,0.00013972,2]
[333090723,1721857844079,-500.0,0.00013972,2]
[333090724,1721857844088,-500.0,0.00013972,2]
[333090725,1721857844098,-500.0,0.00013972,2]
[333090726,1721857844107,-751.9,0.00013972,2]
[333090727,1721857844118,-500.0,0.00013972,2]
[333090728,1721857844127,-500.0,0.00013972,2]
[333090729,1721857844136,-500.0,0.00013972,2]
[333090730,1721857844146,-713.63,0.00013972,2]
[333090731,1721857844156,-500.0,0.00013972,2]
[333090732,1721857844167,-500.0,0.00013972,2]
[333090733,1721857844176,-851.02,0.00013972,2]
[333090735,1721857844185,-500.0,0.00013972,2]
[333090737,1721857844195,-500.0,0.00013972,2]
[333090738,1721857844204,-1760.22,0.00013972,2]
[333090739,1721857844213,-511.20157503,0.00013972,2]
[333090740,1721857844223,-576.17,0.00013972,2]
[333090741,1721857844232,-500.0,0.00013972,2]
[333090743,1721857844242,-1209.78,0.00013972,2]
[333090744,1721857844251,-500.0,0.00013972,2]
[333090745,1721857844260,-623.27,0.00013972,2]
[333090746,1721857844270,-500.0,0.00013972,2]
[333090747,1721857844279,-500.0,0.00013972,2]
[333090748,1721857844289,-500.0,0.00013972,2]
[333090750,1721857844298,-500.0,0.00013972,2]
[333090752,1721857844308,-550.72,0.00013972,2]
[333090754,1721857844317,-500.0,0.00013972,2]
[333090755,1721857844326,-1781.2,0.00013972,2]
[333090756,1721857844336,-500.0,0.00013972,2]
[333090757,1721857844346,-2206.24,0.00013972,2]
[333090758,1721857844355,-1245.45,0.00013972,2]
[333090760,1721857844365,-1120.76,0.00013972,2]
[333090762,1721857844375,-577.38,0.00013972,2]
[333090763,1721857844384,-500.0,0.00013972,2]
[333090764,1721857844393,-500.0,0.00013972,2]
[333090766,1721857844403,-1450.95,0.00013972,2]
[333090768,1721857844412,-500.0,0.00013972,2]
[333090771,1721857844423,-503.00451241,0.00013972,2]
[333090773,1721857844433,-727.42,0.00013972,2]
[333090775,1721857844443,-516.42469456,0.00013972,2]
[333090777,1721857844454,-800.82,0.00013972,2]
[333090779,1721857844464,-500.0,0.00013972,2]
[333090781,1721857844473,-500.0,0.00013972,2]
[333090784,1721857844483,-500.0,0.00013972,2]
[333090786,1721857844493,-500.0,0.00013972,2]
[333090788,1721857844503,-500.0,0.00013972,2]
[333090790,1721857844513,-2022.28,0.00013972,2]
[333090791,1721857844522,-4823.81,0.00013972,2]
[333090792,1721857844532,-500.0,0.00013972,2]
[333090794,1721857844541,-1157.78,0.00013972,2]
[333090795,1721857844551,-500.0,0.00013972,2]
[333090796,1721857844561,-1658.98,0.00013972,2]
[333090797,1721857844570,-500.0,0.00013972,2]
[333090798,1721857844580,-1802.77,0.00013972,2]
[333090799,1721857844589,-1174.69,0.00013972,2]
[333090800,1721857844599,-500.0,0.00013972,2]
[333090801,1721857844609,-4212.18,0.00013972,2]
[333090802,1721857844618,-1149.23,0.00013972,2]
[333090803,1721857844628,-302.76904216,0.00013972,2]
[333090804,1721857844637,-500.0,0.00013972,2]
[333090805,1721857844647,-500.0,0.00013972,2]
[333090806,1721857844657,-2143.7,0.00013972,2]
[333090807,1721857844667,-500.0,0.00013972,2]
[333090808,1721857844676,-151.930552,0.00013972,2]